Cogmind - Beta 11.1 @@@ ROGUE MODE // 2022.07.04 @ 12:52:06 Player: Calazard Result: Destroyed by X-57 Shotgunner with High-powered Shotgun Performance ------------- Evolutions (2) 1000 Regions Visited (5) 1000 Robots Destroyed (11) 55 Value Destroyed (345) 345 Prototype IDs (26) 520 Alien Tech Used (0) 0 Bonus (416) 416 TOTAL SCORE: 3336 Bonus ------- Follower Combat Kills 116 Aligned with FarCom 300 Cogmind --------- Core Integrity 0/550 Matter 282/300 Energy 100/100 System Corruption 0% Temperature Cool (0) Movement Core (200) Ox3 Location -8/Materials Parts ------- > --- POWER (1) -------- (None) > --- PROPULSION (3) --- (None) > --- UTILITY (4) ------ Medium Storage Unit > --- WEAPON (3) ------- (None) > --- INVENTORY (10) --- Weight Redist. System Improved Sensor Array Recoil Stabilizer Insulated Plating Shock Rifle Shock Rifle Field Laser Light Assault Rifle Light Assault Rifle Shotgun Peak State ------------ > --- POWER ------------ Nuclear Core > --- PROPULSION ------- Improved Carbon-fiber Leg Improved Carbon-fiber Leg > --- UTILITY ---------- Medium Storage Unit Cloak of Protection Thief Drone Bay > --- WEAPON ----------- Heavy Laser > --- INVENTORY -------- Weight Redist. System Improved Sensor Array Recoil Stabilizer Insulated Plating Shock Rifle Shock Rifle Field Laser [Rating: 33] Favorites ----------- Power Ion Engine Engine Ion Engine Power Core Light Nuclear Core Propulsion Light Treads Treads Light Treads Leg Aluminum Leg Wheel Wheel Utility Small Storage Unit Device Thief Drone Bay Storage Small Storage Unit Processor Signal Interpreter Protection Core Shielding Weapon Light Assault Rifle Energy Gun Particle Gun Energy Cannon Particle Cannon Ballistic Gun Light Assault Rifle Launcher Rocket Launcher Slashing Weapon Katana Special Melee Weapon Datajack Build | -11 -10 -10 -10 -9 -8 ------- Run | Scr Mat Min Exi Min Mat Slots Evolved 4 | . . . . . 4 Power . | . . . . . . Propulsion 1 | . . . . . 1 Utility 2 | . . . . . 2 Weapon 1 | . . . . . 1 Parts Attached 37 | 6 . 4 3 3 21 Power 4 | 1 . . 1 . 2 Engine 2 | 1 . . 1 . . Core 2 | . . . . . 2 Reactor . | . . . . . . Propulsion 12 | 2 . . . 2 8 Treads 3 | 2 . . . . 1 Leg 7 | . . . . 2 5 Wheel 2 | . . . . . 2 Hover . | . . . . . . Flight . | . . . . . . Utility 10 | 1 . 1 1 . 7 Device 2 | . . . . . 2 Storage 2 | 1 . . 1 . . Processor 2 | . . 1 . . 1 Hackware . | . . . . . . Protection 4 | . . . . . 4 Artifact . | . . . . . . Weapon 11 | 2 . 3 1 1 4 Energy Gun 2 | . . . 1 . 1 Energy Cannon 1 | . . . . . 1 Ballistic Gun 5 | 2 . 2 . . 1 Ballistic Cannon . | . . . . . . Launcher 1 | . . . . . 1 Special Weapon . | . . . . . . Impact Weapon . | . . . . . . Slashing Weapon 1 | . . . . 1 . Piercing Weapon . | . . . . . . Special Melee Weapon 1 | . . 1 . . . Unidentified Prototypes 1 | . . . . . 1 Parts Lost 20 | . . . . . 20 Power 2 | . . . . . 2 Propulsion 9 | . . . . . 9 Utility 5 | . . . . . 5 Weapon 4 | . . . . . 4 Highest Loss Streak 10 | . . . . . 10 To Critical Strikes . | . . . . . . Average Slot Usage (%) 95 | . 85 98 100 99 87 Engine 11 | . 14 14 14 14 5 Treads 21 | . 28 28 28 28 . Leg 5 | . . . . . 21 Storage 12 | . 14 14 14 14 9 Processor 13 | . . 12 14 14 16 Protection 2 | . . . . . 8 Energy Gun 6 | . . . 13 14 2 Energy Cannon 1 | . . . . . 5 Ballistic Gun 12 | . 28 26 14 4 1 Launcher 1 | . . . . . 4 Slashing Weapon 3 | . . . . 8 7 Naked Turns . | . . . . . . Heaviest Build 33 | 12 12 12 19 20 33 Greatest Support 54 | 40 40 40 40 40 54 Greatest Overweight (x) 3 | . . . . . 3 Average Overweight (x) . | . . . . . . Largest Inventory Capacity 10 | 8 8 8 10 10 10 Average Capacity 8 | 7 8 8 8 10 10 Most Carried 10 | 7 6 8 9 10 10 Average Carried 7 | 5 6 7 8 9 9 Final Capacity 10 | 8 8 8 10 10 10 Final Carried 10 | 6 6 8 9 8 10 Class Distribution -------------------- 92% | Mutant 7% | Scavenger-Mutant Dominant Class ---------------- Mutant | -10/Materials Mutant | -10/Mines Mutant | -10/Exiles Mutant | -9/Mines Mutant | -8/Materials Resources | -11 -10 -10 -10 -9 -8 ----------- Run | Scr Mat Min Exi Min Mat Matter Collected 539 | 260 . 62 . 44 173 Remotely . | . . . . . . Salvage Created 425 | . 35 49 . 14 327 Parts 25 | . 3 2 . . 20 Haulers Intercepted . | . . . . . . Recyclers Shooed . | . . . . . . Parts Field Recycled . | . . . . . . Retrieved Matter . | . . . . . . Parts Self-Destructed . | . . . . . . Prevented . | . . . . . . Kills | -11 -10 -10 -10 -9 -8 ------- Run | Scr Mat Min Exi Min Mat Combat Hostiles Destroyed 10 | . 1 1 . 1 7 Melee 2 | . . . . . 2 Guns 4 | . 1 1 . 1 1 Cannons 4 | . . . . . 4 Classes Destroyed 6 | . 1 . . 1 4 Worker 1 | . . . . . 1 Tunneler 1 | . . . . . 1 Swarmer 2 | . . . . . 2 Grunt 6 | . 1 1 . . 4 Sentry 1 | . . . . . 1 Assembled 1 | . . . . 1 . Best Kill Streak 3 | . 1 1 . 1 3 Combat Bots Only 3 | . 1 1 . 1 3 Max Kills in Single Turn 1 | . 1 1 . 1 1 Gunslinging . | . . . . . . Exploded . | . . . . . . Melee 1 | . . . . . 1 Uniques/NPCs Destroyed . | . . . . . . Combat | -11 -10 -10 -10 -9 -8 -------- Run | Scr Mat Min Exi Min Mat Damage Taken 3219 | . 54 314 . 207 2644 Core 710 | . 34 99 . 27 550 Absorbed by Shields . | . . . . . . Redirected to Shielding 38 | . . . . . 38 Core Remaining (%) 68 | 100 . . . 36 . Volleys Fired 41 | . 3 20 . 4 14 Largest 2 | . 2 2 . 2 2 Hottest 93 | . 40 40 . 85 93 Shots Fired 61 | . 6 21 . 8 26 Gun 48 | . 6 21 . 8 13 Cannon 13 | . . . . . 13 Launcher . | . . . . . . Special . | . . . . . . Kinetic 43 | . 6 21 . 4 12 Thermal 18 | . . . . 4 14 Explosive . | . . . . . . Electromagnetic . | . . . . . . Robot Hit Streak 5 | . 3 4 . 1 5 Robot Miss Streak 3 | . 2 2 . 3 1 Penetration Max . | . . . . . . Secondary Targets . | . . . . . . Shots Hit Robots 43 | . 3 15 . 3 22 Core Hits 24 | . 2 4 . 3 15 Critical Kills . | . . . . . . Critical Parts Destroyed . | . . . . . . Critical Strikes 2 | . . . . . 2 Sever 2 | . . . . . 2 Melee Attacks 20 | . . 5 . . 15 Impact . | . . . . . . Slashing 15 | . . . . . 15 Piercing . | . . . . . . Sneak Attacks 6 | . . 4 . . 2 Combat Hostiles . | . . . . . . Follow-up Attacks . | . . . . . . Damage Inflicted 809 | . 27 84 . 31 667 Guns 297 | . 27 83 . 31 156 Cannons 182 | . . . . . 182 Explosions . | . . . . . . Melee 321 | . . . . . 321 Ramming 9 | . . 1 . . 8 Kinetic 263 | . 27 83 . 17 136 Thermal 216 | . . . . 14 202 Explosive . | . . . . . . Electromagnetic . | . . . . . . Impact . | . . . . . . Slashing 321 | . . . . . 321 Piercing . | . . . . . . Highest Corruption . | . . . . . . Average Corruption . | . . . . . . Corruption Purged . | . . . . . . Corruption Blocked . | . . . . . . Overload Shots . | . . . . . . Overflow Damage . | . . . . . . Projectiles . | . . . . . . Explosions . | . . . . . . Melee . | . . . . . . Knockbacks . | . . . . . . Impact . | . . . . . . Kinetic . | . . . . . . Secondary . | . . . . . . Self-Inflicted Damage . | . . . . . . Shots . | . . . . . . Rammed 2 | . . 1 . . 1 Targets Rammed 5 | . . 1 . . 4 Kicked 3 | . . . . . 3 Crushed . | . . . . . . Highest Temperature 342 | . 6 9 . 136 342 Average Temperature 112 | . 6 9 . 68 136 Received Heat Transfer 1326 | . 30 153 . . 1143 Effects 1 | . . . . . 1 Energy Bleed 1 | . . . . . 1 Siege Activations . | . . . . . . Robots Corrupted . | . . . . . . Combat Hostiles . | . . . . . . Parts Fried . | . . . . . . Impact Corruptions . | . . . . . . Robots Melted . | . . . . . . Combat Hostiles . | . . . . . . Parts Melted 1 | . . . . . 1 Heat Transferred 407 | . . . . 37 370 Parts Sabotaged . | . . . . . . Parts Stolen . | . . . . . . Parts Stripped . | . . . . . . Power Chain Reactions . | . . . . . . Missiles Intercepted . | . . . . . . Alert | -11 -10 -10 -10 -9 -8 ------- Run | Scr Mat Min Exi Min Mat Peak Influence 190 | . 34 85 . 109 190 Initial 13 | . . 13 . . . Average 26 | . 3 38 . 49 66 Maximum Alert Level . | . . . . . . Low Security (%) 100 | 100 100 100 . 100 100 Level 1 . | . . . . . . Level 2 . | . . . . . . Level 3 . | . . . . . . Level 4 . | . . . . . . Level 5 . | . . . . . . High Security . | . . . . . . Max Security . | . . . . . . Squads Dispatched 3 | . 1 . . . 2 Investigation . | . . . . . . Extermination . | . . . . . . Reinforcement 2 | . 1 . . . 1 Assault . | . . . . . . Garrison 1 | . . . . . 1 Intercept . | . . . . . . Searches Triggered . | . . . . . . Construction Impeded . | . . . . . . Haulers Reinforced . | . . . . . . Active Scanning Responses . | . . . . . . Cargo Convoy Interrupts . | . . . . . . Stealth | -11 -10 -10 -10 -9 -8 --------- Run | Scr Mat Min Exi Min Mat Distress Signals 2 | . . . . . 2 Communications Jammed . | . . . . . . Distress Signals . | . . . . . . Times Spotted 49 | . 2 5 . 8 34 Peak Tracking Total 15 | . 1 3 . 3 15 Tactical Retreats 7 | . . . . 1 6 Traps | -11 -10 -10 -10 -9 -8 ------- Run | Scr Mat Min Exi Min Mat Traps Triggered 1 | . . . . . 1 Indirectly . | . . . . . . Trap Hack Attempts . | . . . . . . Triggered . | . . . . . . Disarmed . | . . . . . . Reprogrammed . | . . . . . . Reused . | . . . . . . Traps Extracted . | . . . . . . Installed . | . . . . . . Triggered . | . . . . . . Exploded 1 | . . . . . 1 Machines | -11 -10 -10 -10 -9 -8 ---------- Run | Scr Mat Min Exi Min Mat Machines Disabled . | . . . . . . Max in Single Turn . | . . . . . . Machines Sabotaged . | . . . . . . Garrisons Compromised . | . . . . . . Overloaded Fab Kills . | . . . . . . Hacking | -11 -10 -10 -10 -9 -8 --------- Run | Scr Mat Min Exi Min Mat Machines Accessed 6 | . 2 1 1 2 . Terminals 4 | . 2 1 . 1 . Fabricators . | . . . . . . Repair Stations . | . . . . . . Recycling Units . | . . . . . . Scanalyzers . | . . . . . . Garrison Access . | . . . . . . Total Hacks 14 | . 8 3 1 2 . Successful 9 | . 4 2 1 2 . Failed 5 | . 4 1 . . . Catastrophic . | . . . . . . Database Lockouts . | . . . . . . Manual 1 | . . . 1 . . Terminals 12 | . 8 3 . 1 . Fabricators . | . . . . . . Repair Stations . | . . . . . . Recycling Units . | . . . . . . Scanalyzers . | . . . . . . Garrison Access . | . . . . . . Terminal Hacks 9 | . 4 2 1 2 . Record 2 | . . 1 . 1 . Prototype ID Bank 1 | . 1 . . . . Open Door 1 | . . . . 1 . Branch Access Points 1 | . 1 . . . . Locate Traps 2 | . 2 . . . . Dispatch Records 1 | . . 1 . . . EX-Prototype ID Bank 1 | . . . 1 . . Fabricator Hacks . | . . . . . . Repair Station Hacks . | . . . . . . Recycling Unit Hacks . | . . . . . . Scanalyzer . | . . . . . . Garrison Access Hacks . | . . . . . . Unauthorized Hacks . | . . . . . . Terminals . | . . . . . . Fabricators . | . . . . . . Repair Stations . | . . . . . . Recycling Units . | . . . . . . Scanalyzers . | . . . . . . Garrison Access . | . . . . . . Data Cores Recovered . | . . . . . . Used . | . . . . . . Hacking Detections 3 | . 2 1 . . . Full Trace Events . | . . . . . . Feedback Events . | . . . . . . Feedback Blocked . | . . . . . . Robot Schematics Acquired . | . . . . . . Robots Built . | . . . . . . Authchips . | . . . . . . Time . | . . . . . . Total Robot Build Rating . | . . . . . . Part Schematics Acquired . | . . . . . . Parts Built . | . . . . . . Authchips . | . . . . . . Time . | . . . . . . Total Part Build Rating . | . . . . . . Parts Repaired . | . . . . . . Time . | . . . . . . Parts Recycled . | . . . . . . Recycled Matter . | . . . . . . Retrieved Matter . | . . . . . . Retrieved Components . | . . . . . . Parts Scanalyzed . | . . . . . . Part Schematics Acquired . | . . . . . . Parts Damaged . | . . . . . . Bothacking | -11 -10 -10 -10 -9 -8 ------------ Run | Scr Mat Min Exi Min Mat Used RIF Installer . | . . . . . . Robots Hacked 3 | . . 3 . . . Non-combat 2 | . . 2 . . . Combat 1 | . . 1 . . . Robot Hacks Applied 3 | . . 3 . . . parse_system 2 | . . 2 . . . no_distress 1 | . . 1 . . . Relay Couplers Released . | . . . . . . Fabnet Peak Effective % . | . . . . . . Robots Rewired . | . . . . . . Allies Hacked . | . . . . . . Hacks Repelled . | . . . . . . Allies | -11 -10 -10 -10 -9 -8 -------- Run | Scr Mat Min Exi Min Mat Total Allies 5 | . . 5 . . . Largest Group 5 | . . 5 5 3 1 Highest-Rated Group 82 | . . 82 82 40 16 Highest-Rated Ally 31 | . . 31 31 16 16 Total Orders 4 | . . 3 . . 1 STAY 1 | . . . . . 1 GUARD 3 | . . 3 . . . Ally Attacks 48 | . . 6 . 31 11 Total Damage 382 | . . 65 . 300 17 Kills 9 | . . 3 . 6 . Allies Corrupted . | . . . . . . Allies Melted . | . . . . . . Intel | -11 -10 -10 -10 -9 -8 ------- Run | Scr Mat Min Exi Min Mat Robot Analysis Total . | . . . . . . Derelict Logs Recovered 2 | . . 2 . . . Drone Launches 5 | . . . . . 5 Drone Recoveries 4 | . . . . . 4 Exploration | -11 -10 -10 -10 -9 -8 ------------- Run | Scr Mat Min Exi Min Mat Turns Passed 5548 | 2190 189 870 704 743 852 Spaces Moved 3006 | 996 114 499 435 446 516 Core 14 | 13 . . . . 1 Treads 2499 | 983 114 499 435 445 23 Legs 468 | . . . . 1 467 Wheels 25 | . . . . . 25 Hover . | . . . . . . Flight . | . . . . . . Fastest Speed 50 | 50 160 160 160 120 80 Average Speed 155 | 158 160 160 160 159 137 Slowest Speed 270 | 160 160 160 160 160 270 Overloaded Moves . | . . . . . . Propulsion Burnouts . | . . . . . . Robots Hopped . | . . . . . . Cave-ins Triggered . | . . . . . . Exploration Rate (%) 64 | 62 26 98 70 84 44 Regions Visited 5 Branch Regions 3 Pre-discovered Areas 1 | . . . . 1 . Known Exits Taken 4 | . 1 1 1 1 . Unknown Exits Taken 1 | 1 . . . . . Scrap Searched 4 | . . 3 . 1 . Spaces Dug . | . . . . . . Terrain Destroyed . | . . . . . . Melee . | . . . . . . Projectile . | . . . . . . AOE . | . . . . . . Terrain Rammed . | . . . . . . Walls Destroyed . | . . . . . . Machines Disabled . | . . . . . . Actions | -11 -10 -10 -10 -9 -8 --------- Run | Scr Mat Min Exi Min Mat Total 3796 | 1604 116 550 445 472 609 Wait 629 | 596 . 16 . 6 11 Move 3001 | 995 113 498 434 445 516 Hop . | . . . . . . Pick Up 37 | 7 . 4 4 6 16 Fast Attach 16 | 5 . 1 . 1 9 Attach 16 | 1 . 1 2 2 10 Detach . | . . . . . . Swap 5 | . . 2 1 . 2 Drop 26 | . . 2 4 8 12 Fire 41 | . 3 20 . 4 14 Melee 20 | . . 5 . . 15 Ram 1 | . . . . . 1 Kick 3 | . . . . . 3 Crush 1 | . . 1 . . . Escape Stasis . | . . . . . . Rewire . | . . . . . . Trap . | . . . . . . Miscellaneous . | . . . . . . Route ------- -11/Scrapyard -10/Materials (discovered 3 exits: *Mat / *Min x2) -10/Mines (discovered 3 exits: *Mat x2 / *Exi) -10/Exiles (discovered 2 exits: *Min x2) -9/Mines (discovered 2 exits: *Mat x2) -8/Materials (discovered 1 exit: Fac) History --------- Turn | Location | Event 30 | -11/Scrapyard | Discovered new exit (range 15) 2191 | -11/Scrapyard | Entered Materials 2192 | -10/Materials | Build established: Mutant 2270 | -10/Materials | Identified exit to Mines 2369 | -10/Materials | Discovered new exit (range 16) 2380 | -10/Materials | Entered Mines 2602 | -10/Mines | Deemed a non-threat by the Exiles lab entrance 2604 | -10/Mines | Discovered new exit (range 5) 2652 | -10/Mines | Assisted by bots powering up and referring to "LRC-V3" 2715 | -10/Mines | Learned location of 1 exit from Materials 2736 | -10/Mines | Discovered new exit (range 11) 2751 | -10/Mines | Identified exit to Materials 2776 | -10/Mines | Discovered exit to Materials (range 9) 2931 | -10/Mines | Core integrity fell below 50% 3184 | -10/Mines | Learned Materials interactive machine intel 3240 | -10/Mines | Identified exit to Exiles 3250 | -10/Mines | Entered Exiles 3250 | -10/Exiles | Accompanied by 5 allies 3280 | -10/Exiles | Led the pair of lost Derelicts to a safe place 3307 | -10/Exiles | Discovered new exit (range 14) 3324 | -10/Exiles | Identified exit to Mines 3358 | -10/Exiles | Met 8R-AWN 3385 | -10/Exiles | Met EX-HEX 3435 | -10/Exiles | Met EX-BIN 3454 | -10/Exiles | Aligned with FarCom system 3455 | -10/Exiles | Given EX-Vault access code 3492 | -10/Exiles | Opened EX-Vault 3502 | -10/Exiles | Found Cloak of Protection 3535 | -10/Exiles | Warned to stay clear of 0b10 Research branches 3582 | -10/Exiles | Met EX-DEC 3939 | -10/Exiles | Discovered exit to Mines (range 10) 3954 | -10/Exiles | Left Exiles lab with Cloak of Protection 3954 | -10/Exiles | Entered Mines 3954 | -9/Mines | Accompanied by 3 allies 4030 | -9/Mines | Assembled infested the area 4038 | -9/Mines | Found the Drone Emporium 4047 | -9/Mines | Found Prototype Device 4481 | -9/Mines | Learned location of Storage (-9) 4667 | -9/Mines | Discovered new exit (range 4) 4673 | -9/Mines | Discovered new exit (range 9) 4677 | -9/Mines | Identified exit to Materials 4697 | -9/Mines | Entered Materials 4697 | -8/Materials | Accompanied by 1 ally 4697 | -8/Materials | Evolved 4 slots: Propulsion x1, Utility x2, Weapon x1 4698 | -8/Materials | Identified exit to Factory 4699 | -8/Materials | Loaded intel: 14 interactive machine locations 4985 | -8/Materials | Build established: Scavenger-Mutant 5327 | -8/Materials | Build established: Mutant 5459 | -8/Materials | Lost 10 parts (1p5n1u3w) 5493 | -8/Materials | Core integrity fell below 50% 5505 | -8/Materials | Identified Thief Drone Bay 5514 | -8/Materials | Garrison activated, responded to threat 5545 | -8/Materials | Core integrity fell below 20% 5549 | -8/Materials | Destroyed by X-57 Shotgunner with High-powered Shotgun Last Messages --------------- 05520_ Thief Drone released from Thief Drone Bay. 05520_ X-57 Shotgunner VSS Leg ripped off. 05520_ Imp. Carbon-fiber Leg destroyed. 05521_ Thief Drone released from Thief Drone Bay. 05521_ Triggered Blade Trap. 05521_ Massive razor-sharp blades shoot up from within the floor. 05521_ Cloak of Protection severed. 05521_ X-57 Shotgunner Shotgun ripped off. 05523_ Thief Drone delivers VSS Leg. 05523_ Thief Drone retrieved by Thief Drone Bay. 05525_ Thief Drone delivers Shotgun. 05525_ Thief Drone retrieved by Thief Drone Bay. 05528_ Imp. Carbon-fiber Leg destroyed. 05533_ Hvy. Laser destroyed. 05536_ Nuclear Core destroyed. 05544_ Kicked U-05 Engineer. 05545_ VSS Leg destroyed. 05545_ Slammed into U-05 Engineer. 05546_ Critical hit (Burn: +37). 05546_ Thief Drone Bay destroyed. Map ----- +----------------------------------------------------+ | ?####### # #########??#####??????????????# | | + #?????????????????????????????# | | ?####### * # !#???????????????###########???# | | ???????##%## #???????????????# #???# | | ????????#=#?? ! # ????????####### """ #???# | | ??????### ######### ####### # """ ##### | | ??????# #?????# = # """ / | | ####### #?????# %*/ "" ##### | | ! #?????# =%# """#???# | | %###### #?????????####### % #[ S"#??? | | *#????# #???????????????## ## / | | #????#######????????????????# ####/########## | | ##???????????????????????????#!= # g #???????# | | ??????????????????????########%! + """ #???????# | | ??????????????????????# !!* # """ #???????? | | ??????????????????????# # """ #???????? | | ??????????????????????# #? #???????? | | ?????????????##########u Y########? ! #???????? | | ?????????????# # gk#?????????###/#???????? | | ?????????????# " #g Y#?????????????#???????? | | ?????????????# "G" #g Y#?????????????????????? | | ### ?????# " " # x #??""""????????????????? | | #????# gYxY#?""S""????????????????? | | +????#""" # #?""?""????????????????? | | #????#""" ### #??????????????????????? | | ### ?????#""" #?#@#????????????H?????????? | | ????? ##?????# ! #?# #??????????????????????? | | ?????????????##########?# #??????????????????????? | | ????????????????????????# #??????????????????????? | | ????????????????????????# #??????????????????????? | | ???????????????????????? #??????????????????????? | | ?????T???????????????h?? #??????????????????????? | | ???????????????????????? #??????????????????????? | | ????????????????????????#a#??????????????????????? | | ???? ???????????????????? ???????????????????????? | | ???? ???????????????????? ???????????????????????? | | ???? ???????????????????? ???????????????????????? | | ???? ????????????????????[???????????????????????? | | ???? ????????????????????[???????????????????????? | | ???? ????????????????????[???????????????????????? | | ???? ????????????????????#???????????????????????? | | ???# #???????????????????????????????????????????? | | ??? #???????????????????????????????????????????? | | ???# #???????????????????????????????????????????? | | ???# #???????????????????????????????????????????? | | ???# #???????????????????????????????????????????? | | ???# #???????????????????????????????????????????? | | #### #???????????????????????????????????????????? | | %#???????????????????????????????????????????? | | #### #???????????????????????????????????????????? | +----------------------------------------------------+ Best States ------------- Heat Dissipation 31 Energy Generation 14 Energy Capacity 250 Matter Stores 300 Matter Capacity 300 Sight Range 16 Terrain Scan Density 10 Cloak Strength 5 Armor Coverage 225 Resistance: TH 10 Core Shielding 20 Evasion (%) 55 Melee Accuracy 5 Recoil Reduction 2 Item Schematics ----------------- None Robot Schematics ------------------ None Fabricated ------------ Nothing Alien Tech Used ----------------- None Achievements -------------- None Challenges ------------ None Game ------ Seed CoolantDisruptorActivator Manual? 0 Play Time 00:42:55 Cumulative 4.7 hours Start 2022.07.04 @ 12:08:24 End 2022.07.04 @ 12:52:06 Sessions 1 Manual Loads 0 Difficulty Rogue Special Mode None Game No. 5 Rogue 5 Adventurer 0 Explorer 0 Win Type - Total 0 Types 0/0/0/0/0/0/0/0/0 Lore% 11 Gallery% 7 Achievement% 6 Wizard Run 0 Options --------- ASCII 0 Keyboard 0 Movement Numpad Keybinds 0 Fullscreen 0 Font 16/Terminus Map View 76x50 Tactical HUD 1 Map Filters NONE Filters NONE Steam 1 RUN: 5817a0ba-6e7c-4c04-8c66-01254d79a322